bitfinex-derivatives/quotes_SOLF0:USTF0_20250624
["timestamp","ask_amount","ask_price","bid_price","bid_amount"]
[1750768897093,6.9393,144.02,144.0,6.94]
[1750768897285,3.46715884,144.04,144.0,6.94]
[1750768897489,15.83003124,144.05,143.99,3.46715884]
[1750768897795,6.9387,144.03,144.01,6.9395]
[1750768897993,10.01447936,144.05,144.01,6.9395]
[1750768898192,10.01447936,144.05,143.99,3.46715884]
[1750768898492,6.9389,144.03,144.01,6.9395]
[1750768898691,10.01447936,144.05,144.01,6.9395]
[1750768898892,6.9384,144.04,144.01,6.9395]
[1750768900187,6.9387,144.03,144.01,6.9395]
[1750768902000,6.9387,144.03,144.0,6.9396]
[1750768902187,6.9387,144.03,143.99,3.46715884]
[1750768902498,3.46715884,144.06,143.95,6.9976]
[1750768902685,3.46715884,144.04,143.97,3.46715884]
[1750768902889,13.48738261,144.04,143.97,3.46715884]
[1750768903095,6.9398,144.01,143.98,6.9407]
[1750768903297,6.9398,144.01,143.97,3.46715884]
[1750768904396,13.48738261,144.04,143.95,6.9976]
[1750768904397,3.46715884,144.04,143.95,6.9976]
[1750768904699,3.46715884,144.04,143.98,6.9406]
[1750768904899,13.49019351,144.04,143.98,6.9406]
[1750768905204,6.9398,144.01,143.98,6.9406]
[1750768906490,6.9398,144.01,143.96,3.46715884]
[1750768906798,6.9398,144.01,143.99,6.9405]
[1750768907399,6.9393,144.02,143.99,6.9405]
[1750768908602,6.9395,144.01,143.99,6.9405]
[1750768910104,6.9393,144.02,143.99,6.9405]
[1750768910302,3.46715884,144.04,143.99,6.9405]
[1750768911803,6.9395,144.02,143.99,6.9405]
[1750768915004,6.9396,144.01,143.99,6.9405]
[1750768915208,6.9396,144.01,143.98,10.40785884]
[1750768915605,6.9396,144.01,143.98,3.46715884]
[1750768915908,6.9396,144.01,143.99,6.9404]
[1750768917702,5.8140416,144.03,143.98,3.46715884]
[1750768917911,5.95361393,144.04,143.96,3.46964772]
[1750768918106,5.8140308,144.03,143.96,3.46964772]
[1750768918307,6.941,143.98,143.96,10.41134772]
[1750768918510,10.68772408,144.03,143.96,10.41134772]
[1750768918709,4.8730409,144.03,143.96,10.41134772]
[1750768918907,6.9407,143.99,143.96,3.46964772]
[1750768920203,5.83788925,144.02,143.89,63.09394192]
[1750768920204,6.9411,143.98,143.89,63.09394192]
[1750768920406,5.83943769,144.01,143.92,3.46964772]
[1750768920606,19.32087846,144.0,143.92,3.46964772]
[1750768920912,4.88534756,144.02,143.96,3.46964772]
[1750768921108,5.83923902,144.01,143.96,3.46964772]
[1750768921308,6.9408,143.99,143.96,10.41134772]
[1750768921709,6.9408,143.99,143.97,6.9413]
[1750768921909,6.9408,143.99,143.96,3.46964772]
[1750768922105,6.941,143.98,143.96,3.46964772]
[1750768922306,6.941,143.98,143.95,6.942]
[1750768922816,6.941,143.98,143.96,6.9417]
[1750768923212,6.9416,143.97,143.94,3.47090213]
[1750768923414,6.9416,143.97,143.95,6.9422]
[1750768923914,6.9412,143.98,143.95,6.9422]
[1750768924215,6.9412,143.98,143.96,6.9418]
[1750768924412,6.9407,143.99,143.94,3.47090213]
[1750768924807,5.8217949,144.01,143.97,6.9412]
[1750768925003,6.9402,144.0,143.97,6.9412]
[1750768926404,6.9402,144.0,143.98,6.9408]
[1750768926713,6.9398,144.01,143.98,6.9408]
[1750768926919,2.49303542,144.03,143.99,6.9401]
[1750768927108,6.9392,144.02,143.99,6.9401]
[1750768927818,6.9392,144.02,144.0,6.9399]
[1750768928014,5.82331338,144.04,144.0,3.47090213]
[1750768928219,9.98919144,144.06,144.04,6.938]
[1750768928516,8.55114463,144.09,144.04,6.938]
[1750768928517,6.937,144.07,144.04,10.40890213]
[1750768929412,6.937,144.07,144.05,6.9374]
[1750768929722,6.9372,144.06,144.04,3.47090213]
[1750768930424,6.9376,144.05,144.02,3.47090213]
[1750768931316,21.79471184,144.09,144.02,3.47090213]
[1750768931620,18.32342427,144.08,144.02,3.47090213]
[1750768931822,18.32342427,144.07,144.02,3.47090213]
[1750768932120,6.9377,144.05,144.02,10.40990213]
[1750768932314,3.47090213,144.09,144.02,10.40990213]
[1750768932517,6.9379,144.05,144.02,10.40990213]
[1750768933021,6.9374,144.06,144.03,6.9385]
[1750768933621,6.9377,144.05,144.03,6.9385]
[1750768933815,6.9377,144.05,144.02,10.40970213]
[1750768934219,6.9377,144.05,144.03,6.9386]
[1750768935223,10.01542281,144.07,144.04,6.938]
[1750768935423,2.50118602,144.1,144.04,6.938]
[1750768935625,13.24444338,144.09,144.04,6.938]
[1750768935825,6.9369,144.07,144.04,6.938]
[1750768936527,6.9369,144.07,144.05,6.9376]
[1750768937326,6.9369,144.07,144.04,10.40880213]
[1750768938324,6.9364,144.08,144.04,3.47090213]
[1750768938627,5.86017748,144.1,144.06,3.47090213]
[1750768938829,6.9355,144.1,144.07,6.9366]
[1750768940130,6.9358,144.09,144.06,10.40780213]
[1750768942125,11.81795347,144.11,144.06,3.47090213]
[1750768942326,2.49774428,144.14,144.06,3.47090213]
[1750768942530,18.37797122,144.13,144.06,3.47090213]
[1750768942732,6.935,144.11,144.08,6.9359]
[1750768942935,12.50308179,144.13,144.06,3.47090213]
[1750768943237,6.9356,144.1,144.07,6.9363]
[1750768943733,6.9356,144.1,144.08,6.9361]
[1750768945319,10.02394946,144.13,144.07,6.9364]
[1750768945320,6.9358,144.09,144.07,6.9364]
[1750768945523,10.02394946,144.12,144.04,3.47090213]
[1750768945820,21.85467713,144.11,144.03,6.9384]
[1750768946128,3.47090213,144.09,144.02,3.47090213]
[1750768946328,3.47090213,144.09,144.02,10.40970213]
[1750768946520,5.85825567,144.08,144.02,10.40970213]
[1750768947127,6.9382,144.04,144.02,6.9388]
[1750768948028,6.9378,144.05,144.02,6.9388]
[1750768948832,6.9378,144.05,144.03,6.9385]
[1750768950536,6.9382,144.04,144.0,3.47090213]
[1750768950732,8.34523203,144.07,144.0,3.47090213]
[1750768951233,3.47090213,144.07,143.99,84.58681103]
[1750768951539,3.47090213,144.05,143.96,3.47090213]
[1750768951728,6.9393,144.02,143.99,6.9402]
[1750768952330,6.9396,144.01,143.99,6.9402]
[1750768953530,6.9396,144.01,143.98,6.9407]
[1750768954439,3.47090213,144.05,143.98,3.47090213]
[1750768954636,5.82994803,144.05,144.0,3.47090213]
[1750768954937,6.9373,144.06,144.02,3.47090213]
[1750768955927,6.9373,144.06,144.04,6.9378]
[1750768956127,6.9364,144.08,144.04,3.47090213]
[1750768956534,6.9364,144.08,144.05,6.9373]
[1750768958342,6.9367,144.07,144.04,10.40890213]
[1750768958731,6.9364,144.08,144.05,6.9375]
[1750768960641,6.9367,144.07,144.04,10.40870213]
[1750768962536,6.9367,144.07,144.05,6.9376]
[1750768962949,6.9367,144.07,144.04,3.47090213]
[1750768963341,6.9372,144.06,144.02,3.47090213]
[1750768963737,6.9372,144.06,144.04,6.9379]
[1750768964744,9.30389738,144.09,144.02,3.47090213]
[1750768965043,3.47090213,144.07,144.0,3.47090213]
[1750768965439,6.9381,144.04,144.0,3.47090213]
[1750768965639,3.47090213,144.07,144.0,3.47090213]
[1750768966142,6.9379,144.05,144.02,6.9387]
[1750768966341,6.9379,144.05,144.0,3.47090213]
[1750768966738,6.9379,144.05,144.02,6.9387]
[1750768969239,2.48795857,144.08,144.04,6.9377]
[1750768969445,4.86812714,144.09,144.04,3.47090213]
[1750768969742,4.86812714,144.1,144.08,6.9358]
[1750768970053,7.60184577,144.12,144.06,3.47090213]
[1750768970244,15.82116152,144.11,144.06,3.47090213]
[1750768970446,5.8380007,144.1,144.06,3.47090213]
[1750768970648,9.98270466,144.11,144.06,3.47090213]
[1750768970859,7.60509631,144.12,144.08,6.9359]
[1750768971067,5.8403648,144.11,144.08,6.9359]
[1750768971362,6.9351,144.11,144.09,6.9357]
[1750768971955,11.80598169,144.12,144.09,6.9357]
[1750768972253,5.84216068,144.11,144.08,6.9359]
[1750768972453,12.47622999,144.13,144.08,6.9359]
[1750768972757,6.9348,144.11,144.08,6.9359]
[1750768973157,6.9348,144.11,144.09,6.9356]
[1750768975448,5.85708226,144.12,144.08,3.47090213]
[1750768975649,12.46924192,144.15,144.1,3.47090213]
[1750768975855,12.79068036,144.14,144.11,6.9345]
[1750768976056,6.9336,144.14,144.11,6.9345]
[1750768977165,7.59744058,144.16,144.13,6.9336]
[1750768977364,9.98490679,144.17,144.12,3.47090213]
[1750768977566,4.87970005,144.17,144.12,3.47090213]
[1750768977968,6.9325,144.16,144.13,6.9335]
[1750768978167,5.12452876,144.17,144.13,6.9335]
[1750768978665,6.933,144.15,144.11,3.47090213]
[1750768979270,6.933,144.15,144.12,6.9338]
[1750768979470,9.99810404,144.19,144.13,3.47090213]
[1750768979768,5.85091326,144.18,144.13,3.47090213]
[1750768980070,9.99485873,144.19,144.13,3.47090213]
[1750768980071,6.9321,144.17,144.14,6.933]
[1750768980273,5.85163004,144.18,144.11,3.47090213]
[1750768980565,9.32156545,144.17,144.09,3.47090213]
[1750768980768,15.844549,144.16,144.09,3.47090213]
[1750768980970,5.84969027,144.15,144.09,3.47090213]
[1750768981172,5.85001165,144.15,144.09,3.47090213]
[1750768981669,6.9341,144.13,144.1,6.9352]
[1750768982166,6.9343,144.12,144.09,10.40630213]
[1750768983369,6.9352,144.1,144.07,5.85290213]
[1750768984376,6.9352,144.1,144.07,12.78930213]
[1750768984669,3.47090213,144.12,144.05,3.47090213]
[1750768985263,3.47090213,144.12,144.06,6.9369]
[1750768985866,9.32176973,144.12,144.06,6.9369]
[1750768986068,3.47090213,144.12,144.06,6.9369]
[1750768986268,9.32176973,144.12,144.07,6.9366]
[1750768986472,3.47090213,144.12,144.07,6.9366]
[1750768986670,9.32176973,144.12,144.07,6.9366]
[1750768986874,3.47090213,144.12,144.07,6.9366]
[1750768987175,9.32176973,144.12,144.07,6.9366]
[1750768987369,5.8508676,144.13,144.07,6.9366]
[1750768987570,3.47090213,144.14,144.07,6.9366]
[1750768987968,5.83456629,144.13,144.07,6.9366]
[1750768988168,5.83456629,144.13,144.06,6.9369]
[1750768988473,3.47090213,144.14,144.06,6.9369]
[1750768988666,5.83383252,144.13,144.06,6.9369]
[1750768988868,5.83383252,144.12,144.06,6.9369]
[1750768989068,5.83383252,144.13,144.06,6.9369]
[1750768989269,6.9358,144.09,144.06,6.9369]
[1750768990073,6.9354,144.1,144.06,6.9369]
[1750768990977,6.9354,144.1,144.07,6.9365]
[1750768991174,6.9349,144.11,144.05,3.47090213]
[1750768991376,6.9349,144.11,144.08,6.9358]
[1750768992474,13.45874194,144.14,144.04,2.2554]
[1750768992678,3.47090213,144.12,144.05,3.47090213]
[1750768992981,9.2907285,144.12,144.05,6.9374]
[1750768993179,5.81982637,144.11,144.05,6.9374]
[1750768993387,6.9365,144.08,144.05,6.9374]
[1750768993770,5.81982637,144.11,144.04,2.2554]
[1750768993975,6.9359,144.09,144.04,2.2554]
[1750768994189,9.2907285,144.12,144.05,3.47090213]
[1750768994482,5.81982637,144.12,144.05,3.47090213]
[1750768994680,13.43914835,144.14,144.07,3.47090213]
[1750768994877,5.82801946,144.13,144.08,6.9359]
[1750768995076,6.935,144.11,144.08,6.9359]
[1750768997577,6.9352,144.1,144.04,2.2554]
[1750768997878,6.9352,144.1,144.06,3.47090213]
[1750768998677,6.9352,144.1,144.08,6.9359]
[1750769001287,9.31491668,144.12,144.04,5.72630213]
[1750769001487,9.31491668,144.12,144.03,2.2139]
[1750769001488,3.47090213,144.1,144.03,5.68480213]
[1750769001783,6.9359,144.09,144.03,5.68480213]
[1750769002379,6.9362,144.08,144.06,6.9368]
[1750769002588,3.47090213,144.12,144.06,6.9368]
[1750769002787,15.848144,144.11,144.06,6.9368]
[1750769002987,6.936,144.09,144.06,6.9368]
[1750769003389,5.83873203,144.1,144.06,6.9368]
[1750769003688,10.00599342,144.11,144.07,6.9364]
[1750769003889,5.13116482,144.11,144.05,3.47090213]
[1750769004285,6.9359,144.09,144.06,6.9367]
[1750769005389,5.13116482,144.11,144.06,6.9367]
[1750769005688,3.47090213,144.1,144.03,2.2139]
[1750769005887,3.47090213,144.08,144.02,3.47090213]
[1750769006186,3.47090213,144.08,144.02,6.9389]
[1750769006590,6.9379,144.05,144.02,6.9389]
[1750769007291,6.9375,144.06,144.03,6.9384]
[1750769007691,6.9375,144.06,144.01,2.3417]
[1750769007990,6.9375,144.06,144.03,6.9383]
[1750769008489,6.9369,144.07,144.04,6.938]
[1750769009189,6.9372,144.06,144.04,6.938]
[1750769010393,6.9369,144.07,144.04,6.938]
[1750769014190,6.9364,144.08,144.02,3.47090213]
[1750769014388,9.98752432,144.09,144.02,3.47090213]
[1750769014588,3.47090213,144.12,144.04,3.47090213]
[1750769014794,6.9359,144.09,144.06,6.9367]
[1750769015187,2.48677851,144.11,144.06,6.9367]
[1750769015389,6.9358,144.09,144.06,6.9367]
[1750769015792,6.9358,144.09,144.05,6.9375]
[1750769016695,6.9363,144.08,144.05,6.9375]
[1750769017486,6.9359,144.09,144.04,3.47090213]
[1750769017692,5.82233703,144.1,144.04,3.47090213]
[1750769017993,9.98232478,144.11,144.04,3.47090213]
[1750769018297,6.9361,144.09,144.06,6.9369]
[1750769020284,5.82728267,144.1,144.06,6.9369]
[1750769020489,3.47090213,144.1,144.02,65.47090213]
[1750769020689,3.47090213,144.1,144.02,3.47090213]
[1750769020690,6.9371,144.07,144.02,3.47090213]
[1750769021094,5.82717061,144.09,144.02,3.47090213]
[1750769021297,6.9369,144.07,144.02,3.47090213]
[1750769021694,3.47090213,144.1,144.04,6.9378]
[1750769021891,15.81823326,144.09,144.04,6.9378]
[1750769022092,5.82812659,144.08,144.04,6.9378]
[1750769022291,6.9371,144.07,144.04,6.9378]
[1750769024191,2.49001709,144.09,144.04,6.9378]
[1750769024400,5.83196416,144.08,144.04,6.9378]
[1750769024700,2.49001709,144.09,144.04,6.9378]
[1750769024902,5.8348377,144.08,144.02,3.47090213]
[1750769025102,5.83470624,144.07,144.02,3.47090213]
[1750769025402,12.4874817,144.09,144.02,3.47090213]
[1750769025605,15.83314455,144.08,144.03,6.9385]
[1750769025802,5.8358208,144.07,144.03,6.9385]
[1750769026098,6.9374,144.06,144.03,6.9385]
[1750769026298,3.47090213,144.08,144.03,6.9385]
[1750769026609,6.9369,144.07,144.04,6.9378]
[1750769026900,2.4912966,144.09,144.03,3.47090213]
[1750769027201,5.96219873,144.12,144.05,3.47090213]
[1750769027403,18.31971464,144.11,144.05,3.47090213]
[1750769027703,15.82980375,144.1,144.05,65.47090213]
[1750769027896,2.48973314,144.13,144.05,65.47090213]
[1750769028101,18.32194746,144.12,144.05,65.47090213]
[1750769028298,18.32194746,144.11,144.05,65.47090213]
[1750769028494,10.70795752,144.1,144.05,65.47090213]
[1750769028694,6.9347,144.11,144.09,6.9354]
[1750769028897,10.70830687,144.1,144.09,6.9354]
[1750769029605,15.83280657,144.1,144.09,6.9354]
[1750769031104,5.82923927,144.1,144.09,6.9354]
[1750769031405,15.83145555,144.13,144.11,6.9345]
[1750769031704,6.9337,144.14,144.11,6.9345]
[1750769032002,10.70761258,144.13,144.11,6.9345]
[1750769032306,6.9337,144.14,144.11,6.9345]
[1750769032606,12.02204676,144.2,144.13,3.47090213]
[1750769032799,12.82080393,144.22,144.13,3.47090213]
[1750769032800,18.32622033,144.19,144.13,3.47090213]
[1750769032998,25.25782033,144.18,144.16,6.9322]
[1750769033204,5.82910866,144.17,144.16,6.9322]
[1750769033498,25.28493247,144.21,144.18,6.9311]
[1750769033698,5.85260082,144.2,144.18,6.9311]
[1750769033906,6.9302,144.21,144.18,6.9311]
[1750769034095,5.84608826,144.2,144.18,6.9311]
[1750769034404,6.9305,144.2,144.17,6.9316]
[1750769034797,9.98376024,144.22,144.17,6.9316]
[1750769035707,15.77999826,144.22,144.17,6.9316]
[1750769035907,6.9306,144.2,144.17,6.9316]
[1750769036501,5.79624393,144.22,144.15,3.47090213]
[1750769036701,12.47244422,144.28,144.21,3.47090213]
[1750769036908,5.79403806,144.27,144.23,3.47090213]
[1750769037098,4.86938425,144.31,144.25,3.47090213]
[1750769037301,3.47090213,144.31,144.24,2.1926]
[1750769037502,6.9268,144.28,144.24,9.121]
[1750769037704,3.47090213,144.27,144.17,4.5276]
[1750769037899,18.24508045,144.28,144.17,7.98693419]
[1750769038106,18.24508045,144.27,144.17,4.5276]
[1750769038307,3.4599074,144.23,144.17,4.5276]
[1750769038502,10.65246551,144.27,144.18,3.4599074]
[1750769038710,3.4599074,144.25,144.18,3.4599074]
[1750769039010,3.4599074,144.27,144.18,3.4599074]
[1750769039205,10.3907074,144.29,144.2,3.4599074]
[1750769039410,6.9308,144.29,144.22,3.4599074]
[1750769039609,6.9267,144.28,144.24,6.9283]
[1750769040308,9.25106282,144.32,144.24,3.4599074]
[1750769040609,3.4599074,144.32,144.26,3.4599074]
[1750769040810,6.926,144.3,144.26,3.4599074]
[1750769041412,6.926,144.3,144.25,3.4599074]
[1750769041914,6.9028,144.33,144.25,3.4599074]
[1750769042210,6.9261,144.29,144.25,10.3875074]
[1750769043204,6.9268,144.28,144.24,6.9283]
[1750769043506,3.4599074,144.32,144.24,10.3882074]
[1750769043807,3.4599074,144.32,144.25,6.9279]
[1750769044415,3.4599074,144.32,144.26,6.9274]
[1750769044617,3.4599074,144.32,144.28,3.4599074]
[1750769044618,6.9247,144.32,144.28,3.4599074]
[1750769044807,3.4599074,144.37,144.29,6.9258]
[1750769045507,4.7057,144.38,144.3,3.4599074]
[1750769045706,6.9238,144.34,144.3,3.4599074]
[1750769045908,8.1656074,144.38,144.3,3.4599074]
[1750769046103,2.3256,144.38,144.32,6.9242]
[1750769046309,6.923,144.36,144.32,3.4599074]
[1750769046715,6.923,144.36,144.32,10.3841074]
[1750769047108,3.4599074,144.4,144.32,10.3841074]
[1750769047310,3.4599074,144.4,144.31,6.9249]
[1750769047510,3.4599074,144.38,144.31,10.3848074]
[1750769047710,6.9234,144.35,144.31,10.3848074]
[1750769047918,3.4599074,144.38,144.3,3.4599074]
[1750769048113,6.924,144.34,144.3,3.4599074]
[1750769048320,3.4599074,144.38,144.32,10.3842074]
[1750769048520,3.4599074,144.4,144.32,10.3842074]
[1750769048814,6.9235,144.35,144.32,3.4599074]
[1750769049215,6.9235,144.35,144.25,6.8305]
[1750769049414,6.9235,144.35,144.32,3.4599074]
[1750769049617,3.4599074,144.4,144.32,3.4599074]
[1750769050220,3.4599074,144.4,144.32,10.3843074]
[1750769050420,3.4599074,144.41,144.32,3.4599074]
[1750769050613,6.9224,144.37,144.33,3.4599074]
[1750769051118,6.923,144.36,144.33,3.4599074]
[1750769051415,3.4599074,144.39,144.3,3.4599074]
[1750769051619,3.4599074,144.38,144.3,3.4599074]
[1750769052220,6.9246,144.33,144.3,3.4599074]
[1750769052523,3.4599074,144.34,144.28,3.4599074]
[1750769054216,10.20781394,144.36,144.26,5.75831394]
[1750769054621,6.9245,144.33,144.29,6.9258]
[1750769054823,6.9245,144.33,144.28,5.75831394]
[1750769055320,6.9245,144.33,144.3,6.9255]
[1750769055518,6.9245,144.33,144.28,5.75831394]
[1750769055519,5.75831394,144.38,144.28,5.75831394]
[1750769055721,5.75831394,144.38,144.3,5.75831394]
[1750769055921,5.75831394,144.38,144.31,6.9249]
[1750769056226,5.75831394,144.4,144.3,5.75831394]
[1750769056522,5.75831394,144.4,144.33,6.9241]
[1750769056911,5.75831394,144.4,144.3,5.75831394]
[1750769057119,5.75831394,144.4,144.32,6.9244]
[1750769058122,6.9231,144.36,144.32,6.9244]
[1750769058426,5.75831394,144.4,144.32,6.9244]
[1750769059121,6.923,144.36,144.33,6.9241]
[1750769059528,5.75831394,144.4,144.3,5.75831394]
[1750769059826,5.75831394,144.38,144.28,5.75831394]
[1750769060326,6.9241,144.34,144.28,5.75831394]
[1750769060927,5.75831394,144.38,144.28,5.75831394]
[1750769062629,6.9244,144.33,144.28,5.75831394]
[1750769063323,6.9244,144.33,144.3,6.9253]
[1750769063523,6.9239,144.34,144.28,5.75831394]
[1750769063726,5.75831394,144.38,144.3,5.75831394]
[1750769064520,6.9239,144.34,144.3,5.75831394]
[1750769065131,6.9247,144.32,144.28,5.75831394]
[1750769065329,5.75831394,144.38,144.28,5.75831394]
[1750769066229,5.75831394,144.38,144.29,6.9256]
[1750769067125,5.75831394,144.38,144.3,6.9255]
[1750769067832,5.75831394,144.38,144.28,5.75831394]
[1750769068035,11.55568546,144.38,144.28,5.75831394]
[1750769069133,6.9243,144.33,144.3,6.9253]
[1750769069330,5.75831394,144.38,144.25,6.8305]
[1750769069530,16.1602448,144.38,144.28,5.75831394]
[1750769069732,6.9244,144.33,144.3,6.9255]
[1750769071644,6.9246,144.32,144.29,6.9259]
[1750769072640,6.9244,144.33,144.3,6.9255]
[1750769074749,5.02549472,144.36,144.28,5.75831394]
[1750769075042,5.04010883,144.37,144.3,5.75831394]
[1750769075240,5.75831394,144.4,144.3,5.75831394]
[1750769075241,6.9233,144.35,144.32,6.9244]
[1750769076143,5.8353448,144.34,144.27,5.75831394]
[1750769076343,5.8353448,144.34,144.25,4.613]
[1750769076344,4.63490891,144.35,144.28,3.4545962]
[1750769076546,6.9249,144.32,144.29,6.9259]
[1750769077333,6.9249,144.32,144.3,6.9256]
[1750769077534,6.9249,144.32,144.28,3.4545962]
[1750769077934,5.85457728,144.31,144.29,6.9258]
[1750769078137,6.9249,144.32,144.29,6.9258]
[1750769078343,5.85451445,144.31,144.29,6.9258]
[1750769078540,12.00574083,144.36,144.29,6.9258]
[1750769078741,5.8596052,144.35,144.29,6.9258]
[1750769078941,15.5856351,144.34,144.29,6.9258]
[1750769079141,15.5856351,144.33,144.28,3.4545962]
[1750769079442,3.4545962,144.36,144.28,3.4545962]
[1750769079443,5.8596052,144.32,144.28,3.4545962]
[1750769079645,6.9242,144.33,144.3,6.9252]
[1750769079943,5.86598309,144.32,144.28,3.4545962]
[1750769080139,6.9242,144.33,144.28,3.4545962]
[1750769080341,5.86596764,144.32,144.28,3.4545962]
[1750769080542,6.9242,144.33,144.28,3.4545962]
[1750769080748,12.79688086,144.32,144.28,3.4545962]
[1750769080951,5.87228086,144.31,144.29,3.4545962]
[1750769081143,6.9244,144.33,144.26,64.3513]
[1750769081348,15.55084668,144.32,144.29,3.4545962]
[1750769081550,5.87143048,144.31,144.29,3.4545962]
[1750769081747,6.9246,144.33,144.3,6.9253]
[1750769081948,10.96035965,144.32,144.3,6.9253]
[1750769082146,5.87911774,144.31,144.3,6.9253]
[1750769085054,4.60190979,144.35,144.29,3.4545962]
[1750769085252,15.57581961,144.34,144.26,64.3513]
[1750769085445,2.51447745,144.38,144.33,3.4545962]
[1750769085757,2.51447745,144.38,144.26,85.1813]
[1750769085758,12.00978119,144.37,144.34,6.9241]
[1750769085943,3.4545962,144.42,144.34,6.9241]
[1750769086149,7.61023034,144.41,144.34,10.3786962]
[1750769086358,6.9215,144.39,144.36,6.9225]
[1750769086551,5.09309249,144.38,144.36,6.9225]
[1750769086750,6.9215,144.39,144.36,6.9225]
[1750769086958,5.09053151,144.38,144.36,6.9225]
[1750769087150,6.9215,144.39,144.36,6.9225]
[1750769087350,5.09181821,144.38,144.36,6.9225]
[1750769087649,6.9215,144.39,144.36,6.9225]
[1750769087848,5.09176853,144.38,144.37,6.9222]
[1750769088453,6.921,144.4,144.37,6.9222]
[1750769088655,5.09600908,144.39,144.38,6.9216]
[1750769088853,6.921,144.4,144.38,6.9216]
[1750769089055,6.9205,144.41,144.38,6.9216]
[1750769089265,2.52329824,144.4,144.38,6.9216]
[1750769089447,6.9205,144.41,144.38,6.9216]
[1750769089647,3.4545962,144.43,144.37,6.922]
[1750769089958,2.52329281,144.42,144.37,6.922]
[1750769090255,6.9207,144.41,144.37,6.922]
[1750769090450,6.9207,144.41,144.38,6.9217]
[1750769090650,6.92,144.42,144.38,3.4545962]
[1750769090954,2.52185741,144.44,144.38,3.4545962]
[1750769091162,12.05967589,144.47,144.4,3.4545962]
[1750769091461,2.52173537,144.46,144.34,6.9241]
[1750769091647,6.9191,144.44,144.4,3.4545962]
[1750769092250,6.9191,144.44,144.41,6.9201]
[1750769092652,6.9185,144.45,144.4,3.4545962]
[1750769093144,6.9189,144.44,144.4,3.4545962]
[1750769093344,3.4545962,144.47,144.41,6.92]
[1750769093549,3.4545962,144.47,144.4,3.4545962]
[1750769093761,2.51961493,144.48,144.4,3.4545962]
[1750769093960,6.9187,144.45,144.4,3.4545962]
[1750769094457,2.51957632,144.49,144.43,6.9191]
[1750769094758,2.51957632,144.48,144.43,6.9191]
[1750769094957,2.51957632,144.49,144.43,6.9191]
[1750769095161,7.13407632,144.5,144.43,6.9191]
[1750769095370,10.58867252,144.5,144.43,6.9191]
[1750769095668,6.918,144.46,144.43,6.9191]
[1750769096057,7.13407632,144.5,144.42,3.4545962]
[1750769096259,2.5152896,144.5,144.44,3.4545962]
[1750769096460,5.7825962,144.51,144.44,3.4545962]
[1750769096660,2.5152896,144.52,144.44,3.4545962]
[1750769096860,3.4545962,144.51,144.44,3.4545962]
[1750769097260,3.4545962,144.53,144.44,3.4545962]
[1750769097660,6.9161,144.5,144.46,6.9176]
[1750769097858,3.4545962,144.53,144.44,3.4545962]
[1750769098264,6.9169,144.49,144.45,6.9183]
[1750769099056,6.9162,144.5,144.46,3.4545962]
[1750769099357,10.2909962,144.55,144.46,3.4545962]
[1750769099665,6.9159,144.51,144.47,6.9171]
[1750769099870,10.2909962,144.55,144.41,6.8539]
[1750769099871,3.4545962,144.53,144.41,6.8539]
[1750769100064,3.4545962,144.53,144.46,3.4545962]
[1750769100770,3.4545962,144.49,144.41,10.3084962]
[1750769100965,3.4545962,144.47,144.41,10.3084962]
[1750769101165,6.9187,144.45,144.42,6.9197]
[1750769101565,3.4545962,144.49,144.41,10.3084962]
[1750769101765,3.4545962,144.49,144.41,17.2286962]
[1750769102172,6.9188,144.45,144.41,17.2286962]
[1750769102674,6.9188,144.45,144.42,6.9198]
[1750769103275,3.4545962,144.49,144.43,6.9191]
[1750769103479,3.4545962,144.51,144.43,3.4545962]
[1750769103681,3.4545962,144.58,144.5,3.4545962]
[1750769103975,3.4545962,144.56,144.48,3.4545962]
[1750769104365,3.4545962,144.56,144.49,6.9161]
[1750769104873,6.9148,144.53,144.49,6.9161]
[1750769105268,6.9148,144.53,144.5,6.9159]
[1750769106363,6.9143,144.54,144.5,6.9159]
[1750769106872,3.4545962,144.56,144.5,6.9159]
[1750769107574,6.9147,144.53,144.5,6.9159]
[1750769109080,6.9144,144.54,144.51,6.9154]
[1750769109980,6.9144,144.54,144.5,10.3703962]
[1750769110177,5.7801962,144.58,144.5,3.4545962]
[1750769110480,5.7801962,144.58,144.5,10.3703962]
[1750769110677,6.9145,144.54,144.5,10.3703962]
[1750769110866,5.7801962,144.58,144.5,10.3703962]